bitfinex/quotes_SOLUSD_20250718
["timestamp","ask_amount","ask_price","bid_price","bid_amount"]
[1752843803246,48.16812952,179.89,179.88,0.89]
[1752843803556,62.64551125,179.89,179.83,7.7856]
[1752843803756,62.64551125,179.89,179.8,0.69]
[1752843803757,8.83214881,179.84,179.8,0.69]
[1752843803974,8.83214881,179.81,179.79,7.672]
[1752843804137,8.83214881,179.8,179.79,7.672]
[1752843804337,38.85214881,179.81,179.79,7.672]
[1752843804561,38.85214881,179.81,179.79,8.382]
[1752843804744,38.85214881,179.81,179.79,7.672]
[1752843804942,30.02,179.81,179.8,0.71]
[1752843805457,30.0,179.82,179.8,0.71]
[1752843805651,38.83214881,179.82,179.8,0.71]
[1752843805956,30.0,179.82,179.8,0.71]
[1752843806161,8.83214881,179.81,179.8,0.71]
[1752843806339,8.83214881,179.81,179.79,7.672]
[1752843807044,35.5612761,179.82,179.8,0.71]
[1752843807251,35.5612761,179.82,179.79,7.672]
[1752843807252,8.83214881,179.81,179.79,7.672]
[1752843807562,35.5612761,179.82,179.8,0.71]
[1752843808262,35.5612761,179.82,179.81,0.71]
[1752843808566,38.83214881,179.82,179.81,0.71]
[1752843808749,26.0,179.86,179.81,0.71]
[1752843808957,38.95214881,179.85,179.81,0.71]
[1752843809135,38.95214881,179.86,179.81,9.54214881]
[1752843809337,30.12,179.86,179.82,0.71]
[1752843809554,30.12,179.86,179.82,9.54214881]
[1752843809743,48.33707394,179.87,179.83,0.71]
[1752843810158,53.89670475,179.87,179.83,0.71]
[1752843810351,45.06455594,179.87,179.83,0.71]
[1752843810567,16.78468397,179.86,179.83,0.71]
[1752843810866,8.83214881,179.84,179.79,7.672]
[1752843811054,8.83214881,179.83,179.79,7.672]
[1752843811360,8.83214881,179.83,179.8,0.71]
[1752843811759,8.83214881,179.82,179.81,0.71]
[1752843811938,8.83214881,179.82,179.79,7.672]
[1752843812342,30.1,179.82,179.79,7.672]
[1752843812548,8.83214881,179.8,179.77,0.91]
[1752843812742,8.83214881,179.78,179.77,0.2]
[1752843813043,30.1,179.8,179.77,0.2]
[1752843813278,38.93214881,179.82,179.77,9.03214881]
[1752843813572,42.78468397,179.84,179.78,9.54214881]
[1752843813573,26.0,179.84,179.78,9.54214881]
[1752843813780,64.93214881,179.84,179.79,9.54214881]
[1752843813970,38.93214881,179.84,179.8,0.71]
[1752843814459,44.49279803,179.84,179.8,0.71]
[1752843814660,14.39279803,179.84,179.8,0.71]
[1752843814855,8.83214881,179.83,179.8,0.71]
[1752843815940,56.1,179.86,179.8,9.54214881]
[1752843816146,56.1,179.86,179.83,1.6416]
[1752843816364,26.0,179.85,179.84,0.71]
[1752843816563,23.77671061,179.87,179.84,0.71]
[1752843816746,23.77671061,179.87,179.85,0.71]
[1752843816942,23.77671061,179.87,179.83,1.6416]
[1752843817268,14.9445618,179.87,179.86,0.71]
[1752843817444,23.77671061,179.87,179.86,0.71]
[1752843818273,18.21707394,179.87,179.86,0.71]
[1752843818443,9.38492513,179.87,179.86,0.71]
[1752843822545,9.38492513,179.87,179.86,21.34542871]
[1752843822971,5.6168634,179.96,179.86,36.82992847]
[1752843823273,5.6168634,179.96,179.87,0.16]
[1752843823274,8.83214881,179.95,179.87,0.16]
[1752843823479,9.52214881,179.95,179.9,8.83214881]
[1752843823672,9.52214881,179.95,179.9,8.99214881]
[1752843823673,0.69,179.95,179.9,8.99214881]
[1752843823873,5.6168634,179.96,179.9,8.99214881]
[1752843823874,5.6168634,179.96,179.91,8.83214881]
[1752843824075,8.83214881,179.92,179.86,22.22021106]
[1752843824383,0.69,179.92,179.87,8.83214881]
[1752843824679,6.2481436,179.92,179.87,8.99214881]
[1752843824852,15.08029241,179.92,179.87,8.99214881]
[1752843825267,26.06,179.96,179.91,8.83214881]
[1752843825459,34.89214881,179.96,179.91,8.99214881]
[1752843825656,34.89214881,179.96,179.9,8.83214881]
[1752843825970,9.52214881,179.95,179.9,8.83214881]
[1752843826179,15.07925168,179.95,179.9,8.83214881]
[1752843826479,9.52214881,179.94,179.89,8.83214881]
[1752843826686,5.55710287,179.95,179.88,0.16]
[1752843826982,9.52214881,179.93,179.88,8.99214881]
[1752843827177,9.52214881,179.92,179.87,14.39163406]
[1752843827350,0.69,179.92,179.87,14.39163406]
[1752843827754,9.52214881,179.92,179.87,14.39163406]
[1752843828156,8.83214881,179.88,179.82,1.5499]
[1752843828372,8.83214881,179.9,179.81,11.80936576]
[1752843828373,8.83214881,179.83,179.81,6.248]
[1752843828760,0.69,179.85,179.81,6.248]
[1752843828969,9.52214881,179.85,179.81,6.248]
[1752843829179,5.5595708,179.87,179.81,6.408]
[1752843829382,8.83214881,179.85,179.81,6.408]
[1752843829561,8.83214881,179.84,179.81,6.248]
[1752843829765,6.2495708,179.87,179.81,6.248]
[1752843830006,8.83214881,179.85,179.81,6.248]
[1752843830488,8.83214881,179.87,179.82,8.99214881]
[1752843830667,34.83214881,179.9,179.85,8.83214881]
[1752843830982,8.83214881,179.9,179.86,0.16]
[1752843831687,9.52214881,179.89,179.83,8.83214881]
[1752843831872,8.83214881,179.89,179.83,14.55289007]
[1752843832180,8.83214881,179.88,179.83,8.99214881]
[1752843832385,9.52214881,179.89,179.83,14.55294635]
[1752843832774,9.52214881,179.89,179.84,8.83214881]
[1752843833167,5.55890071,179.9,179.84,8.83214881]
[1752843833365,8.83214881,179.9,179.83,5.56079754]
[1752843833568,5.55802578,179.92,179.84,8.83214881]
[1752843833788,8.83214881,179.89,179.83,5.72079754]
[1752843834082,5.55876895,179.9,179.84,8.83214881]
[1752843834256,8.83214881,179.88,179.83,14.39294635]
[1752843834463,8.83214881,179.88,179.83,14.55294635]
[1752843834660,6.24876895,179.9,179.83,5.72079754]
[1752843834884,8.83214881,179.88,179.83,14.55294635]
[1752843835393,9.52214881,179.88,179.83,8.99214881]
[1752843835563,15.08147848,179.88,179.83,0.16]
[1752843835969,15.08147848,179.88,179.83,8.99214881]
[1752843836164,5.55932967,179.88,179.81,11.80940019]
[1752843836388,9.52214881,179.87,179.82,8.83214881]
[1752843836574,9.52214881,179.87,179.81,11.80940019]
[1752843836900,9.52214881,179.87,179.82,8.83214881]
[1752843837191,5.55932967,179.88,179.83,8.83214881]
[1752843837393,8.83214881,179.87,179.82,5.56100142]
[1752843837585,8.83214881,179.87,179.82,14.55315023]
[1752843838097,15.08147848,179.88,179.83,8.83214881]
[1752843838300,15.08147848,179.88,179.83,14.55294293]
[1752843838301,0.06,179.87,179.83,14.55294293]
[1752843838473,0.06,179.87,179.83,8.99214881]
[1752843838988,0.06,179.87,179.84,8.99214881]
[1752843839183,0.06,179.87,179.82,5.56106163]
[1752843839409,0.06,179.87,179.83,8.99214881]
[1752843840283,0.06,179.87,179.82,5.56106163]
[1752843840499,0.06,179.87,179.83,8.83214881]
[1752843841202,0.69,179.86,179.83,8.83214881]
[1752843841503,0.06,179.87,179.83,8.99214881]
[1752843841684,0.06,179.87,179.84,8.83214881]
[1752843842073,0.06,179.87,179.83,8.99214881]
[1752843842511,0.06,179.87,179.84,8.83214881]
[1752843842730,0.06,179.87,179.83,8.99214881]
[1752843842877,0.06,179.87,179.83,8.83214881]
[1752843843273,0.06,179.87,179.82,5.56097669]
[1752843843573,0.06,179.87,179.83,8.83214881]
[1752843844519,0.06,179.87,179.85,8.83214881]
[1752843844722,0.06,179.87,179.84,0.16]
[1752843844885,0.06,179.87,179.85,8.99214881]
[1752843845386,0.06,179.87,179.81,6.438]
[1752843845592,8.83214881,179.86,179.81,36.358]
[1752843845794,8.83214881,179.86,179.81,11.99934499]
[1752843846011,9.52214881,179.86,179.81,20.8314938]
[1752843846211,0.69,179.85,179.81,15.11014881]
[1752843846896,8.83214881,179.86,179.81,15.11014881]
[1752843847092,9.52214881,179.86,179.81,15.11014881]
[1752843847601,15.08207565,179.86,179.81,15.11014881]
[1752843847913,15.08207565,179.86,179.81,6.278]
[1752843848097,9.52214881,179.85,179.81,6.278]
[1752843848811,0.69,179.85,179.82,8.83214881]
[1752843849004,14.45176708,179.87,179.81,6.278]
[1752843849207,0.69,179.86,179.82,8.83214881]
[1752843849518,8.89214881,179.87,179.82,14.55318688]
[1752843849895,14.45173484,179.87,179.83,0.16]
[1752843850092,15.14173484,179.87,179.81,11.99935932]
[1752843850307,15.14173484,179.87,179.82,8.83214881]
[1752843850820,0.06,179.87,179.83,8.99214881]
[1752843851119,0.06,179.87,179.84,0.16]
[1752843851320,0.06,179.87,179.81,11.83935932]
[1752843851321,0.06,179.87,179.83,8.83214881]
[1752843851719,0.06,179.87,179.84,8.99214881]
[1752843852118,0.06,179.87,179.84,0.16]
[1752843852311,0.06,179.87,179.82,5.56103594]
[1752843852312,0.06,179.87,179.86,8.83214881]
[1752843852901,0.06,179.87,179.86,8.99214881]
[1752843853208,0.06,179.87,179.86,0.16]
[1752843853405,0.06,179.87,179.86,8.83214881]
[1752843853809,0.06,179.87,179.86,8.99214881]
[1752843855051,8.89214881,179.87,179.85,1.5723]
[1752843855211,0.75,179.87,179.83,8.83214881]
[1752843855412,0.06,179.87,179.86,8.83214881]
[1752843855622,0.06,179.87,179.85,8.83214881]
[1752843856011,0.06,179.87,179.85,0.16]
[1752843856219,0.06,179.87,179.86,8.83214881]
[1752843857218,0.06,179.87,179.86,14.55202871]
[1752843857416,0.06,179.87,179.86,8.83214881]
[1752843857729,0.06,179.87,179.85,5.56011972]
[1752843857927,0.06,179.87,179.85,8.83214881]
[1752843860338,0.06,179.87,179.86,8.83214881]
[1752843861035,0.06,179.87,179.85,8.83214881]
[1752843861540,0.06,179.87,179.86,8.83214881]
[1752843862234,0.06,179.87,179.84,26.0]
[1752843862436,8.89214881,179.87,179.83,0.03]
[1752843862622,0.69,179.86,179.83,8.86214881]
[1752843862943,0.06,179.87,179.84,8.83214881]
[1752843863140,0.06,179.87,179.86,8.83214881]
[1752843864215,0.06,179.87,179.86,14.39202871]
[1752843864743,0.06,179.87,179.86,8.83214881]
[1752843864920,0.06,179.87,179.86,14.39202871]
[1752843865119,0.06,179.87,179.86,14.55202871]
[1752843865320,0.06,179.87,179.86,44.53202871]
[1752843865526,0.06,179.87,179.86,52.78252871]
[1752843866424,0.06,179.87,179.86,52.62252871]
[1752843866626,0.06,179.87,179.84,26.16]
[1752843866627,0.06,179.87,179.85,35.52012549]
[1752843866811,0.06,179.87,179.86,8.83214881]
[1752843867335,0.06,179.87,179.85,35.68012549]
[1752843867538,0.06,179.87,179.86,8.83214881]
[1752843868238,0.06,179.87,179.86,14.39202871]
[1752843868413,0.06,179.87,179.86,5.5598799]
[1752843868616,0.06,179.87,179.86,14.39202871]
[1752843869223,0.06,179.87,179.86,8.83214881]
[1752843869442,0.06,179.87,179.85,5.56010687]
[1752843869634,0.06,179.87,179.86,8.83214881]
[1752843869816,0.73,179.87,179.84,31.5604204]
[1752843870013,0.73,179.87,179.84,40.39256921]
[1752843871737,0.73,179.87,179.85,8.83214881]
[1752843872234,0.06,179.87,179.86,8.83214881]
[1752843872413,0.06,179.87,179.84,31.7204204]
[1752843872613,0.06,179.87,179.86,8.83214881]
[1752843874132,0.06,179.87,179.85,5.56015447]
[1752843874329,0.06,179.87,179.86,8.83214881]
[1752843874524,0.67,179.86,179.84,26.0]
[1752843874835,0.67,179.85,179.84,26.0]
[1752843875026,0.67,179.85,179.83,0.03]
[1752843875614,0.67,179.84,179.83,0.03]
[1752843876253,15.06264703,179.84,179.83,0.03]
[1752843876838,6.23049822,179.84,179.83,0.03]
[1752843877032,9.50214881,179.84,179.83,0.03]
[1752843879137,0.06,179.87,179.83,0.03]
[1752843879333,0.67,179.86,179.83,0.03]
[1752843879534,0.67,179.85,179.83,0.03]
[1752843879945,0.67,179.84,179.83,0.03]
[1752843880448,0.06,179.87,179.83,0.03]
[1752843880651,0.67,179.86,179.83,8.86214881]
[1752843880965,0.06,179.87,179.85,8.83214881]
[1752843882259,0.06,179.87,179.84,5.56048352]
[1752843882447,0.67,179.86,179.83,0.03]
[1752843882750,0.67,179.85,179.83,0.03]
[1752843883150,0.67,179.84,179.83,0.03]
[1752843885827,5.61965975,179.87,179.83,8.86214881]
[1752843886033,0.67,179.86,179.83,8.86214881]
[1752843886231,14.45180856,179.87,179.83,0.03]
[1752843886436,0.67,179.85,179.83,0.03]
[1752843886844,0.67,179.84,179.83,0.03]
[1752843887351,0.67,179.86,179.83,0.03]
[1752843887552,0.67,179.86,179.83,8.86214881]
[1752843887764,0.67,179.86,179.84,8.83214881]
[1752843888051,0.06,179.87,179.84,8.83214881]
[1752843888232,0.73,179.87,179.85,8.83214881]
[1752843888432,0.06,179.87,179.85,8.83214881]
[1752843888758,0.73,179.87,179.84,8.83214881]
[1752843889257,0.73,179.87,179.83,0.03]
[1752843889560,9.50214881,179.86,179.83,0.03]
[1752843889943,0.67,179.85,179.83,0.03]
[1752843891265,8.83214881,179.84,179.83,0.03]
[1752843891456,14.39264703,179.84,179.83,0.03]
[1752843891641,15.06264703,179.84,179.83,0.03]
[1752843892540,6.23049822,179.84,179.83,0.03]
[1752843892736,15.06264703,179.84,179.83,0.03]
[1752843893158,9.50214881,179.84,179.83,0.03]
[1752843893663,15.06264703,179.84,179.83,0.03]
[1752843894549,0.67,179.84,179.83,0.03]
[1752843894856,15.06264703,179.84,179.83,0.03]
[1752843895438,39.26214881,179.84,179.83,0.03]
[1752843895652,44.82264703,179.84,179.83,0.03]
[1752843896477,44.82264703,179.84,179.81,0.03]
[1752843896766,26.0,179.81,179.8,0.03]
[1752843897076,8.83214881,179.81,179.8,0.03]
[1752843897286,35.52214881,179.81,179.8,0.03]
[1752843897846,57.86825872,179.81,179.8,0.03]
[1752843898665,41.08357475,179.81,179.8,0.03]
[1752843899040,57.86825872,179.81,179.8,0.03]
[1752843899467,57.86825872,179.81,179.79,0.03]
[1752843899468,16.78468397,179.8,179.79,0.03]
[1752843899671,35.13898159,179.8,179.76,0.03]
[1752843899842,8.83214881,179.78,179.76,0.03]
[1752843900042,38.69214881,179.77,179.76,0.03]
[1752843900243,39.38214881,179.77,179.76,0.03]
[1752843900584,55.84,179.81,179.76,14.4250474]
[1752843900745,29.84,179.81,179.78,8.83214881]
[1752843901055,5.56039864,179.85,179.76,5.59289859]
[1752843901252,29.84,179.84,179.8,8.83214881]
[1752843901564,12.76001466,179.87,179.83,8.83214881]
[1752843901778,12.76001466,179.87,179.86,8.83214881]
[1752843902345,12.76001466,179.87,179.84,6.04044515]
[1752843902346,12.76001466,179.87,179.84,0.48]
[1752843902546,12.76001466,179.87,179.85,8.83214881]
[1752843902777,12.76001466,179.87,179.82,1.6521]
[1752843902957,13.45001466,179.87,179.82,1.6521]
[1752843903146,13.45001466,179.87,179.83,14.16585109]
[1752843903351,0.75,179.87,179.86,14.16585109]
[1752843903561,0.75,179.87,179.84,14.16585109]
[1752843903767,0.69,179.86,179.82,14.16585109]
[1752843904348,6.24999811,179.86,179.82,14.16585109]
[1752843904653,0.69,179.85,179.81,6.1266]
[1752843904858,0.69,179.84,179.8,14.16585109]
[1752843905257,14.85585109,179.83,179.77,38.0559]
[1752843905469,0.69,179.83,179.77,7.7559]
[1752843905671,14.16585109,179.81,179.76,14.19585109]
[1752843905878,6.25173526,179.8,179.76,14.19585109]
[1752843906050,20.41758635,179.8,179.76,0.03]
[1752843906253,6.25173526,179.8,179.76,14.19585109]
[1752843906451,14.16585109,179.81,179.76,14.19585109]
[1752843906452,5.56148755,179.81,179.77,14.16585109]
[1752843906666,29.8,179.84,179.8,14.16585109]
[1752843906969,29.8,179.84,179.81,14.16585109]
[1752843907149,30.49,179.84,179.8,14.16585109]
[1752843907548,0.69,179.83,179.8,14.16585109]
[1752843907769,36.05072406,179.84,179.8,14.16585109]
[1752843907979,36.05072406,179.84,179.78,0.48]
[1752843908276,36.05072406,179.84,179.8,14.16585109]
[1752843908576,29.78,179.86,179.83,14.16585109]
[1752843908761,0.06,179.87,179.85,14.16585109]
[1752843908964,0.06,179.87,179.86,14.64585109]
[1752843909657,0.06,179.87,179.86,0.48]
[1752843909849,0.06,179.87,179.86,14.64585109]
[1752843910178,0.06,179.87,179.86,20.20573099]
[1752843910548,0.06,179.87,179.86,14.64585109]
[1752843910774,0.06,179.87,179.86,14.16585109]
[1752843912050,0.06,179.87,179.85,5.55992692]
[1752843912283,0.06,179.87,179.85,14.16585109]
[1752843912453,0.06,179.87,179.84,22.34510753]
[1752843912661,0.06,179.87,179.85,14.16585109]
[1752843913281,14.85585109,179.86,179.82,16.78468397]
[1752843913572,14.85585109,179.85,179.8,19.72750095]
[1752843914153,5.56001174,179.86,179.81,14.16585109]
[1752843914585,20.41586283,179.86,179.81,14.16585109]
[1752843915120,6.25001174,179.86,179.81,19.72726563]
[1752843915298,14.16585109,179.86,179.8,5.56168937]
[1752843915449,14.85585109,179.86,179.81,14.16585109]
[1752843915765,0.69,179.85,179.81,14.16585109]
[1752843915961,0.69,179.84,179.8,14.16585109]
[1752843916173,14.85585109,179.84,179.8,14.16585109]
[1752843916374,14.16585109,179.82,179.78,8.0335]
[1752843916682,14.85585109,179.82,179.78,8.0335]
[1752843916884,29.74,179.86,179.78,27.76163954]
[1752843917060,14.16585109,179.84,179.79,14.64585109]
[1752843917390,14.16585109,179.84,179.8,0.48]
[1752843917674,14.16585109,179.85,179.8,14.64585109]
[1752843917884,14.85585109,179.85,179.8,14.64585109]
[1752843918176,14.85585109,179.85,179.8,20.20735866]
[1752843919186,26.06,179.87,179.84,16.78468397]
[1752843919187,0.06,179.87,179.84,16.78468397]
[1752843919386,0.06,179.87,179.86,30.95053506]
[1752843919593,0.06,179.87,179.86,16.78468397]
[1752843919891,0.06,179.87,179.86,46.98468397]
[1752843920105,0.06,179.87,179.86,61.15053506]
[1752843920266,0.06,179.87,179.86,66.71041496]
[1752843921377,0.06,179.87,179.85,5.56010864]
[1752843921578,0.06,179.87,179.85,19.72595973]
[1752843921991,14.85585109,179.86,179.81,0.55614259]
[1752843922174,26.0,179.83,179.76,0.51]
[1752843922491,14.16585109,179.82,179.76,14.19585109]
[1752843922696,14.85585109,179.81,179.76,16.81468397]
[1752843922887,0.69,179.8,179.76,0.03]
[1752843923075,14.85585109,179.8,179.76,0.03]
[1752843923403,14.85585109,179.79,179.76,0.03]
[1752843923591,14.16585109,179.77,179.76,0.03]
[1752843924098,0.72,179.77,179.76,0.03]
[1752843924400,14.16585109,179.78,179.76,0.03]
[1752843924973,14.88585109,179.8,179.76,0.03]
[1752843925378,14.88585109,179.79,179.76,0.03]
[1752843925674,14.16585109,179.78,179.76,0.03]
[1752843925900,14.88585109,179.79,179.76,0.03]
[1752843926078,14.16585109,179.78,179.76,0.03]
[1752843926280,14.88585109,179.78,179.76,0.03]
[1752843926485,14.88585109,179.77,179.76,0.03]
[1752843928480,20.44851449,179.77,179.76,0.03]
[1752843928992,6.2826634,179.77,179.76,0.03]
[1752843929290,0.72,179.77,179.76,0.03]
[1752843929499,14.16585109,179.77,179.76,0.03]
[1752843929696,20.44851449,179.77,179.76,0.03]
[1752843930503,29.76,179.78,179.76,0.03]
[1752843930724,43.92585109,179.78,179.76,0.03]
[1752843931014,29.76,179.78,179.76,0.03]
[1752843931377,43.92585109,179.78,179.76,0.03]
[1752843931574,30.48,179.78,179.76,0.03]
[1752843931778,43.92585109,179.78,179.76,0.03]
[1752843932091,44.64585109,179.78,179.76,0.03]
[1752843932289,14.88585109,179.77,179.76,0.03]
[1752843932501,14.16585109,179.79,179.76,0.03]
[1752843932808,14.16585109,179.78,179.76,0.03]
[1752843933014,14.88585109,179.77,179.76,0.03]
[1752843933507,0.72,179.77,179.76,0.03]
[1752843933706,14.16585109,179.78,179.76,0.03]
[1752843933882,20.44830115,179.78,179.76,0.03]
[1752843934210,14.88585109,179.77,179.76,0.03]
[1752843935015,14.88585109,179.77,179.75,0.03]
[1752843935016,120.25409,179.76,179.75,0.03]
[1752843935487,135.13994109,179.76,179.75,0.03]
[1752843935681,164.85994109,179.76,179.75,0.03]
[1752843937409,170.42291394,179.76,179.75,0.03]
[1752843937621,156.25706285,179.76,179.75,0.03]
[1752843937802,170.42291394,179.76,179.75,0.03]
[1752843938002,164.09994109,179.76,179.75,0.03]
[1752843938711,170.38291394,179.76,179.75,0.03]
[1752843940986,170.88291394,179.76,179.75,0.03]
[1752843941186,170.38291394,179.76,179.75,0.03]
[1752843941495,120.22409,179.75,179.73,0.03]
[1752843941712,43.84585109,179.74,179.73,0.03]
[1752843942104,44.56585109,179.74,179.73,0.03]
[1752843942506,50.12944294,179.74,179.73,0.03]
[1752843944017,26.0,179.7,179.68,0.03]
[1752843944200,43.84585109,179.69,179.68,0.03]
[1752843944406,44.56585109,179.69,179.68,0.03]
[1752843944716,50.13099105,179.69,179.67,0.03]
[1752843945019,26.0,179.64,179.54,14.16585109]
[1752843945229,14.16585109,179.59,179.53,6.7185]
[1752843945394,43.84585109,179.58,179.53,20.88435109]
[1752843945589,29.68,179.58,179.51,31.95950693]
[1752843945798,29.68,179.58,179.52,14.16585109]
[1752843945996,14.16585109,179.57,179.51,32.66950693]
[1752843946222,14.16585109,179.54,179.51,32.66950693]
[1752843946426,43.84585109,179.56,179.51,46.83535802]
[1752843946607,43.84585109,179.56,179.51,32.66950693]
[1752843946794,43.84585109,179.56,179.51,46.83535802]
[1752843947318,14.16585109,179.53,179.51,31.95950693]
[1752843947615,14.16585109,179.53,179.48,20.44724599]
[1752843947616,43.84585109,179.53,179.48,20.44724599]
[1752843947792,29.68,179.53,179.49,0.71]
[1752843947992,29.68,179.53,179.48,0.71]
[1752843948192,14.16585109,179.52,179.48,0.71]
[1752843948405,29.68,179.53,179.44,40.48909729]
[1752843948406,43.84585109,179.51,179.46,0.71]
[1752843948631,29.68,179.51,179.46,0.71]
[1752843948799,29.68,179.51,179.47,14.87585109]
[1752843948993,43.84585109,179.51,179.47,0.71]
[1752843949195,26.72,179.53,179.47,0.71]
[1752843949399,14.16585109,179.51,179.47,0.71]
[1752843949720,43.86585109,179.51,179.47,0.71]
[1752843950022,44.58585109,179.51,179.46,14.16585109]
[1752843950221,120.22409,179.5,179.46,14.16585109]
[1752843950423,29.7,179.49,179.46,0.71]
[1752843950737,120.22409,179.5,179.48,14.16585109]
[1752843951196,120.22409,179.5,179.45,6.28252863]
[1752843951594,120.22409,179.5,179.46,14.16585109]
[1752843951931,120.94409,179.5,179.45,6.28252863]
[1752843952128,120.94409,179.5,179.46,14.16585109]
[1752843952503,120.94409,179.5,179.45,6.28252863]
[1752843952835,120.22409,179.5,179.46,0.71]
[1752843952999,120.22409,179.5,179.47,14.16585109]
[1752843953199,120.22409,179.5,179.46,14.87585109]
[1752843954010,120.22409,179.5,179.46,14.16585109]
[1752843954423,134.38994109,179.5,179.44,16.78468397]
[1752843954732,134.38994109,179.5,179.45,19.73843398]
[1752843954733,29.7,179.49,179.45,19.73843398]
[1752843954930,30.39,179.49,179.45,5.57258289]
[1752843955100,29.7,179.49,179.45,14.16585109]
[1752843955429,29.7,179.49,179.46,14.16585109]
[1752843955600,14.85585109,179.48,179.42,31.57326312]
[1752843955929,44.55585109,179.47,179.42,14.16585109]
[1752843956117,29.7,179.46,179.42,14.16585109]
[1752843956325,14.16585109,179.45,179.41,6.4981]
[1752843956537,44.55585109,179.44,179.38,22.35919439]
[1752843956728,14.16585109,179.43,179.37,7.90855448]
[1752843956941,30.39,179.44,179.36,6.253]
[1752843956942,14.16585109,179.41,179.36,6.253]
[1752843957109,30.39,179.42,179.36,6.253]
[1752843957110,43.88585109,179.4,179.36,6.253]
[1752843957436,29.72,179.4,179.37,14.16585109]
[1752843957822,29.72,179.4,179.36,12.49829925]
[1752843958016,43.88585109,179.4,179.36,6.923]
[1752843958216,30.41,179.4,179.36,6.253]
[1752843958818,29.72,179.4,179.36,12.49831816]
[1752843959311,43.88585109,179.4,179.36,6.253]
[1752843959511,43.88585109,179.4,179.36,11.82835325]
[1752843959714,44.57585109,179.4,179.36,11.82835325]
[1752843960227,49.63470127,180.4,179.36,11.82835325]
[1752843960228,16.78468397,179.49,179.39,14.16585109]
[1752843960416,30.47,179.48,179.41,14.16585109]
[1752843960609,0.69,179.48,179.41,0.67]
[1752843960813,0.69,179.51,179.46,14.16585109]
[1752843961034,0.69,179.51,179.47,14.16585109]
[1752843961211,0.69,179.53,179.49,14.16585109]
[1752843961418,29.78,179.54,179.49,0.67]
[1752843961726,29.78,179.54,179.51,14.16585109]
[1752843961917,29.78,179.54,179.5,14.16585109]
[1752843962229,29.78,179.54,179.46,6.5796]
[1752843962230,14.16585109,179.51,179.46,6.5796]
[1752843962432,14.16585109,179.51,179.42,0.67]
[1752843962433,14.16585109,179.48,179.42,0.67]
[1752843962822,14.16585109,179.48,179.43,14.16585109]
[1752843962823,0.69,179.48,179.43,14.16585109]
[1752843963018,35.41106503,179.5,179.43,14.16585109]
[1752843963019,14.16585109,179.49,179.44,14.16585109]
[1752843963220,26.69,179.51,179.46,14.16585109]
[1752843963421,29.86,179.49,179.46,14.16585109]
[1752843963619,14.16585109,179.48,179.42,22.35819194]
[1752843963924,14.85585109,179.48,179.43,14.16585109]
[1752843964129,0.69,179.48,179.44,14.16585109]
[1752843964448,44.02585109,179.49,179.42,14.16585109]
[1752843964449,14.85585109,179.47,179.42,14.16585109]
[1752843964949,29.9,179.49,179.43,6.24320403]
[1752843965128,29.9,179.49,179.45,14.16585109]
[1752843965323,26.0,179.51,179.43,6.24320403]
[1752843965324,26.0,179.51,179.47,14.16585109]
[1752843965528,29.9,179.5,179.47,14.16585109]
[1752843965730,26.0,179.51,179.46,0.67]
[1752843965925,26.0,179.51,179.47,14.16585109]
[1752843966241,40.85585109,179.51,179.46,14.83585109]
[1752843966439,14.16585109,179.5,179.45,14.16585109]
[1752843966637,14.16585109,179.48,179.43,14.16585109]
[1752843966843,14.16585109,179.45,179.41,6.5754]
[1752843967046,14.85585109,179.45,179.41,6.5754]
[1752843967219,29.9,179.46,179.41,26.31495803]
[1752843967423,29.9,179.46,179.41,12.14910694]
[1752843967730,29.9,179.46,179.43,14.16585109]
[1752843967940,29.9,179.46,179.41,12.81910694]
[1752843968132,26.0,179.48,179.45,14.16585109]